bitfinex/quotes_ETHUSD_20241101
["timestamp","ask_amount","ask_price","bid_price","bid_amount"]
[1730480911886,3.97798,2513.9,2513.3,3.97871]
[1730480912184,3.97798,2513.9,2513.4,3.97862]
[1730480912388,3.0,2514.4,2513.7,3.97818]
[1730480912595,3.97728,2514.3,2513.8,0.397818]
[1730480912984,3.97776,2514.0,2513.4,3.97854]
[1730480913348,0.07923717,2513.9,2513.3,3.97874]
[1730480913499,3.97776,2514.0,2513.1,1.4322]
[1730480913500,3.9775,2514.2,2513.6,3.97831]
[1730480913658,0.07923717,2514.1,2513.6,3.97831]
[1730480914054,5.27411225,2513.7,2512.7,0.1220767]
[1730480914287,3.97888,2513.3,2512.7,0.1220767]
[1730480914486,4.05833717,2513.2,2512.7,0.1220767]
[1730480914661,3.9795,2512.9,2512.7,0.1220767]
[1730480914982,3.97962,2512.8,2512.7,0.1220767]
[1730480915185,3.9795,2512.9,2512.7,0.1220767]
[1730480915787,0.07923717,2513.0,2512.7,0.1220767]
[1730480916463,3.97946,2512.9,2512.7,0.1220767]
[1730480916657,4.05885717,2512.8,2512.7,0.1220767]
[1730480916900,4.86268889,2512.8,2512.7,0.1220767]
[1730480917110,3.0,2513.0,2512.7,0.1220767]
[1730480917311,4.05885717,2512.9,2512.7,0.1220767]
[1730480917608,3.97892,2513.3,2512.7,0.1220767]
[1730480917826,4.05830717,2513.2,2512.7,4.1018267]
[1730480918107,0.07923717,2513.2,2512.7,4.1018267]
[1730480918271,0.07923717,2513.3,2512.7,4.65178937]
[1730480918592,3.97908,2513.2,2512.7,0.1220767]
[1730480918769,0.07923717,2513.1,2512.7,0.1220767]
[1730480919215,3.97931,2513.0,2512.7,0.1220767]
[1730480919381,0.07923717,2512.9,2512.7,0.1220767]
[1730480919907,0.07923717,2513.0,2512.7,0.1220767]
[1730480920112,0.07923717,2513.1,2512.7,0.1220767]
[1730480920677,9.3799,2513.4,2512.7,0.1220767]
[1730480920678,0.07923717,2513.3,2512.7,0.53226837]
[1730480920908,1.4491,2513.7,2512.8,1.54358487]
[1730480921071,0.07923717,2513.6,2513.0,3.97919]
[1730480921274,3.97867,2513.4,2512.8,1.464]
[1730480921477,3.97911,2513.2,2512.7,0.1220767]
[1730480921710,0.07923717,2513.1,2512.8,3.97958]
[1730480921915,4.05806717,2513.3,2512.7,4.1017667]
[1730480922284,3.97923,2513.1,2512.7,0.1220767]
[1730480922484,3.97962,2512.8,2512.7,0.1220767]
[1730480922712,4.05885717,2512.8,2512.7,0.1220767]
[1730480923120,7.05885717,2512.8,2512.7,0.1220767]
[1730480923328,8.54555717,2512.8,2512.7,0.1220767]
[1730480923610,10.24623294,2512.8,2512.7,0.1220767]
[1730480924837,3.98097,2512.0,2511.5,1.4806]
[1730480925049,0.07923717,2511.9,2511.4,3.98174]
[1730480925401,0.07923717,2511.9,2511.3,3.98199]
[1730480925642,0.62658789,2511.9,2511.2,1.39]
[1730480925859,0.62658789,2511.9,2510.5,19.77]
[1730480925860,3.98184,2511.4,2510.6,3.98301]
[1730480926026,3.98216,2511.2,2510.6,3.98301]
[1730480926192,3.98184,2511.4,2510.8,3.98266]
[1730480926193,0.07923717,2511.1,2510.8,3.98266]
[1730480926540,3.98112,2511.9,2511.1,3.98219]
[1730480926541,0.07923717,2511.5,2511.1,3.98219]
[1730480926702,5.39461,2511.8,2511.0,3.98238]
[1730480926703,3.98156,2511.6,2511.0,3.98238]
[1730480926898,0.07923717,2511.5,2511.0,3.98239]
[1730480927097,0.07923717,2511.5,2511.2,3.98214]
[1730480927301,1.4133,2511.8,2510.5,5.37324]
[1730480927302,0.07923717,2511.7,2510.7,3.98295]
[1730480927495,0.07923717,2511.7,2510.8,0.0796436]
[1730480927737,0.07923717,2511.7,2510.5,1.39]
[1730480927738,3.98214,2511.3,2510.5,5.37324]
[1730480927936,3.98256,2511.0,2510.3,3.98343]
[1730480928095,0.07923717,2510.9,2510.4,3.9834]
[1730480928738,0.07923717,2510.9,2510.4,3.98327]
[1730480928944,3.9831,2510.7,2510.2,0.1220767]
[1730480929101,4.06235717,2510.6,2510.2,0.1220767]
[1730480929294,0.07923717,2510.6,2510.2,0.1220767]
[1730480929500,3.981,2512.0,2510.8,3.98268]
[1730480929501,0.07923717,2511.1,2510.8,3.98268]
[1730480929718,0.07923717,2511.4,2511.0,3.98232]
[1730480930038,5.35202,2511.8,2511.3,3.982]
[1730480930243,3.9817,2511.5,2510.8,3.98272]
[1730480930443,0.07923717,2511.4,2511.0,3.98246]
[1730480930736,0.07923717,2511.6,2511.1,3.98221]
[1730480930895,0.07923717,2511.6,2511.0,3.98237]
[1730480930896,4.06076717,2511.6,2511.0,3.98237]
[1730480931096,3.98181,2511.5,2510.8,3.98265]
[1730480931342,4.06108717,2511.4,2510.5,4.3563]
[1730480931632,3.98256,2511.0,2510.3,3.98343]
[1730480931855,0.07923717,2510.9,2510.4,3.98342]
[1730480931997,3.98305,2510.7,2510.2,0.1220767]
[1730480932311,1.53733717,2510.6,2510.2,0.1220767]
[1730480932511,5.52050717,2510.6,2510.2,0.1220767]
[1730480932695,3.98329,2510.5,2510.2,0.1220767]
[1730480932902,3.98358,2510.3,2510.2,0.1220767]
[1730480933341,8.44521717,2510.3,2510.2,0.1220767]
[1730480933539,8.91598,2510.3,2510.2,0.1220767]
[1730480933705,8.91598,2510.3,2508.4,1.4417]
[1730480933706,1.3814,2509.5,2508.9,3.98572]
[1730480933912,0.07923717,2509.4,2509.0,0.398572]
[1730480934108,0.07923717,2509.7,2509.1,3.98545]
[1730480934310,0.07923717,2509.7,2508.9,3.98581]
[1730480934514,0.07923717,2509.7,2508.5,3.98636]
[1730480934826,0.07923717,2509.7,2508.4,1.4417]
[1730480934827,0.07923717,2509.8,2509.5,3.98477]
[1730480935021,0.07923717,2509.8,2509.3,3.98509]
[1730480935239,0.07923717,2509.8,2509.3,4.383599]
[1730480935443,0.07923717,2509.8,2509.1,3.9854]
[1730480935644,0.07923717,2509.8,2508.9,3.9857]
[1730480935645,3.98469,2509.7,2508.9,3.9857]
[1730480935978,3.98469,2509.7,2508.7,5.34447]
[1730480935979,3.98486,2509.5,2508.7,5.34447]
[1730480936238,4.06426717,2509.4,2508.7,5.34447]
[1730480936397,0.07923717,2509.4,2508.7,5.42418381]
[1730480936593,0.07923717,2509.4,2508.8,0.84241838]
[1730480936841,0.07923717,2509.4,2508.9,3.98571]
[1730480937047,0.07923717,2509.4,2508.7,1.3585]
[1730480937256,3.9851,2509.4,2508.5,3.98635]
[1730480937540,0.07923717,2509.3,2508.6,3.98626]
[1730480937743,0.07923717,2509.3,2508.7,3.98612]
[1730480937908,0.07923717,2509.3,2508.6,4.783441]
[1730480938438,4.06448717,2509.3,2508.3,1.4169]
[1730480938642,4.06448717,2509.3,2508.4,3.9866]
[1730480938842,3.98533,2509.2,2508.5,3.98635]
[1730480939056,0.07923717,2509.1,2508.5,3.98644]
[1730480939249,1.3942,2509.0,2507.7,0.18975395]
[1730480939454,0.07923717,2508.9,2508.4,3.98645]
[1730480940020,0.07923717,2508.9,2508.2,7.9736]
[1730480940221,0.07923717,2508.9,2507.7,0.1210087]
[1730480940222,1.3967,2508.6,2507.7,0.1210087]
[1730480940436,3.98669,2508.4,2507.7,0.1210087]
[1730480940635,0.07923717,2508.3,2507.7,0.1210087]
[1730480941149,1.4901,2509.4,2508.7,3.98599]
[1730480941306,0.07923717,2509.3,2508.7,3.986]
[1730480941804,0.07923717,2509.3,2509.0,3.98565]
[1730480942005,1.56933717,2509.8,2509.3,0.55]
[1730480942235,1.56933717,2509.8,2508.5,4.4075]
[1730480942236,1.56933717,2509.8,2508.7,3.98605]
[1730480942441,5.55380717,2509.8,2508.9,3.98581]
[1730480942852,1.56933717,2509.8,2509.3,3.98515]
[1730480943057,0.07923717,2509.7,2509.3,3.98515]
[1730480943345,0.07923717,2509.7,2508.8,3.398605]
[1730480943346,3.98493,2509.5,2508.8,0.55]
[1730480943504,1.45853717,2509.4,2508.6,3.98618]
[1730480943701,1.45853717,2509.4,2508.8,3.98595]
[1730480944229,0.07923717,2509.6,2509.2,7.9704]
[1730480944413,0.07923717,2509.6,2509.1,3.98539]
[1730480944949,1.3793,2509.8,2508.8,0.55]
[1730480944950,1.3793,2509.8,2509.4,3.98492]
[1730480945159,0.07923717,2509.7,2509.3,3.98501]
[1730480945500,0.07923717,2509.7,2509.5,3.98477]
[1730480945844,1.43353717,2510.2,2509.8,3.98437]
[1730480946415,1.43353717,2510.2,2510.0,3.98399]
[1730480946634,0.07923717,2510.6,2509.7,6.98453]
[1730480946839,1.506,2511.1,2510.5,3.98317]
[1730480947022,0.1,2511.1,2510.8,3.98271]
[1730480947225,0.1,2511.1,2510.5,0.6264088]
[1730480947226,0.1,2511.1,2510.6,0.55]
[1730480947410,0.1,2511.1,2511.0,4.53247]
[1730480947608,0.1,2511.1,2511.0,6.09640791]
[1730480947856,0.1,2511.1,2511.0,6.01677]
[1730480948019,3.98081,2512.1,2511.7,3.98126]
[1730480948020,0.07923717,2512.1,2511.7,3.98126]
[1730480948227,0.07923717,2512.4,2511.9,3.98103]
[1730480948571,3.97937,2513.0,2511.7,3.98126]
[1730480948572,4.78261172,2513.3,2512.4,3.9802]
[1730480948854,0.07923717,2513.2,2513.0,5.27411225]
[1730480949216,0.41136155,2513.3,2513.0,5.27411225]
[1730480949423,0.41136155,2513.3,2513.1,4.52914]
[1730480949616,0.41136155,2513.3,2513.2,4.52899]
[1730480950131,0.41136155,2513.3,2513.0,5.27411225]
[1730480950550,0.41136155,2513.3,2513.2,4.52899]
[1730480950819,3.97817,2513.8,2513.2,0.55]
[1730480951048,3.97817,2513.8,2513.1,0.07957976]
[1730480951049,0.07923717,2513.7,2513.1,0.55]
[1730480951210,4.05753717,2513.7,2513.0,5.27411225]
[1730480951418,3.97837,2513.6,2513.0,5.27411225]
[1730480951657,3.97837,2513.6,2512.6,6.9799]
[1730480951658,0.07923717,2513.5,2512.6,9.25401225]
[1730480951874,3.97887,2513.3,2512.4,3.98021]
[1730480952015,0.61335417,2513.2,2512.6,5.27411225]
[1730480952216,0.07923717,2513.2,2512.6,9.25393225]
[1730480952831,3.07923717,2513.2,2512.6,9.25393225]
[1730480953062,3.07923717,2513.2,2512.7,0.55]
[1730480953661,3.97827,2513.7,2513.0,5.27411225]
[1730480953828,0.07923717,2513.6,2513.0,5.27411225]
[1730480954164,0.66099959,2513.6,2513.0,9.25338225]
[1730480954334,0.66099959,2513.6,2513.0,5.27411225]
[1730480954947,3.97872,2513.4,2513.0,5.27411225]
[1730480955149,0.07923717,2513.3,2512.7,0.55]
[1730480955978,0.07923717,2513.5,2513.0,9.25341225]
[1730480956291,0.07923717,2513.5,2513.1,0.55]
[1730480956431,0.07923717,2513.5,2513.1,4.5291]
[1730480956636,5.738207,2513.8,2513.1,0.55]
[1730480956637,0.07923717,2513.7,2513.1,0.55]
[1730480957134,1.83935417,2513.8,2513.3,0.55]
[1730480957331,5.81740417,2513.8,2513.3,0.55]
[1730480957574,4.56008042,2513.7,2513.1,0.55]
[1730480957736,0.07923717,2513.6,2513.2,3.97895]
[1730480957937,0.07923717,2513.8,2513.4,5.27411225]
[1730480958144,0.07923717,2514.0,2513.5,0.55]
[1730480958478,0.07923717,2514.0,2513.5,4.52841]
[1730480958634,0.07923717,2514.0,2513.5,0.55]
[1730480959241,0.07923717,2514.1,2513.5,4.5285]
[1730480959546,0.48490489,2514.1,2513.5,4.5285]
[1730480959971,5.33915,2514.6,2513.9,4.52787]
[1730480960178,3.97649,2514.8,2514.2,5.27411225]
[1730480960485,0.07923717,2514.7,2514.2,5.27411225]
[1730480960975,7.95306,2514.8,2514.3,0.55]
[1730480961186,0.07923717,2514.7,2514.3,4.52715]
[1730480961338,0.07923717,2514.9,2514.3,0.62953565]
[1730480961537,0.07923717,2515.1,2514.7,0.55]
[1730480961742,0.07923717,2515.1,2515.0,5.27411225]
[1730480962057,0.0038874,2515.3,2515.1,0.55]
[1730480962583,3.97596,2515.2,2514.7,0.55]
[1730480962892,3.97596,2515.2,2514.6,5.27411225]
[1730480962893,0.0038874,2515.3,2514.9,0.55]
[1730480963057,0.0038874,2515.3,2515.0,5.27411225]
[1730480964142,0.0038874,2515.3,2515.1,0.55]
[1730480964991,0.0038874,2515.3,2515.0,5.27411225]
[1730480965172,0.0038874,2515.3,2514.9,0.55]
[1730480965378,0.08312457,2515.3,2514.9,0.55]
[1730480965560,0.0038874,2515.3,2514.9,0.55]
[1730480966116,0.0038874,2515.3,2515.1,0.55]
[1730480967273,3.97617,2515.0,2514.4,5.36938]
[1730480967594,3.97671,2514.7,2514.2,3.9774]
[1730480967886,3.97671,2514.7,2514.1,9.25164225]
[1730480968101,4.05591717,2514.7,2514.0,1.4128]
[1730480968645,4.05591717,2514.7,2514.1,3.97755]
[1730480968870,0.07923717,2514.7,2514.1,4.05709094]
[1730480969396,1.4468,2515.0,2514.2,0.55]
[1730480969547,4.05562717,2514.9,2514.2,4.52725]
[1730480969931,3.9767,2514.7,2514.2,0.55]
[1730480970148,3.97702,2514.5,2513.8,3.978]
[1730480970426,0.55024272,2514.8,2513.6,3.97826]
[1730480970427,3.97759,2514.1,2513.6,3.97826]
[1730480970581,3.97788,2513.9,2513.4,3.97858]
[1730480971086,0.07923717,2513.8,2512.9,6.64311225]
[1730480971408,3.97885,2513.3,2512.6,3.97983]
[1730480971730,0.795747,2513.3,2512.7,0.07957801]
[1730480971880,3.9786,2513.5,2513.0,3.97929]
[1730480972077,3.97781,2514.0,2513.3,5.27411225]
[1730480972304,0.07923717,2514.0,2513.7,3.97817]
[1730480972520,4.4274,2514.6,2513.4,3.97857]
[1730480972521,4.05680717,2514.1,2513.4,3.97857]
[1730480972719,3.97784,2514.0,2513.4,3.97861]
[1730480973021,3.97784,2514.0,2513.2,1.4607]
[1730480973022,3.97833,2513.7,2513.2,1.4607]
[1730480973219,0.07923717,2513.7,2513.3,0.55]
[1730480973532,0.07923717,2513.9,2513.3,4.52882]
[1730480973759,3.97628,2515.0,2513.6,0.55]
[1730480973760,4.05673717,2514.2,2513.6,0.55]
[1730480973884,0.40567372,2514.1,2513.8,0.55]
[1730480974228,0.07923717,2514.4,2514.1,3.97746]
[1730480974379,3.97663,2514.7,2514.1,3.97746]
[1730480974588,0.07923717,2514.9,2514.4,0.55]
[1730480974980,3.97667,2514.7,2514.3,0.55]
[1730480975182,4.38226072,2514.7,2514.2,0.55]
[1730480975493,0.07923717,2514.6,2514.0,4.52767]
[1730480975693,3.97697,2514.5,2513.9,3.97785]
[1730480975908,4.05620717,2514.5,2514.0,0.55]
[1730480976229,4.05620717,2514.5,2513.8,0.55]
[1730480976230,3.97756,2514.1,2513.8,0.55]
[1730480976834,0.07923717,2514.0,2513.5,1.4607]
[1730480977126,0.07923717,2514.0,2513.3,5.27411225]
[1730480977327,3.97859,2513.5,2513.0,3.97919]
[1730480977620,0.397859,2513.5,2512.9,9.25341225]
[1730480977783,3.97824,2513.7,2513.2,3.97896]
[1730480977984,3.97824,2513.7,2513.0,3.9793]
[1730480977985,3.97844,2513.6,2513.0,7.95852]
[1730480978181,3.97844,2513.6,2513.0,3.97922]
[1730480978442,3.97824,2513.7,2513.1,3.97901]
[1730480978599,8.75221,2513.7,2513.1,3.97901]
[1730480978795,8.75221,2513.7,2513.2,0.55]
[1730480979122,8.75215,2513.7,2513.2,4.52898]
[1730480979328,8.75218,2513.7,2513.2,4.52898]
[1730480979626,3.97839,2513.6,2513.1,4.52908]
[1730480979835,0.07923717,2513.7,2513.3,0.55]
[1730480980122,3.97835,2513.6,2513.3,0.55]
[1730480980329,3.97833,2513.7,2513.2,0.55]
[1730480980700,3.97833,2513.7,2513.2,4.52891]
[1730480980899,4.4977,2514.3,2513.2,4.52891]
[1730480980900,0.40562072,2514.4,2513.7,0.55]
[1730480981154,3.9775,2514.2,2513.7,9.80230225]
[1730480981286,3.97727,2514.3,2513.9,0.55]
[1730480981489,3.97705,2514.5,2513.9,0.55]
[1730480981490,0.07923717,2514.4,2513.9,0.55]
[1730480981725,0.07923717,2514.4,2514.1,0.55]
[1730480982121,3.977,2514.5,2513.9,4.52783]
[1730480982294,0.07923717,2514.4,2514.1,3.97742]
[1730480982505,3.97605,2515.1,2514.2,0.62954504]
[1730480982705,4.05528717,2515.1,2514.6,4.52677]
[1730480982924,3.97614,2515.0,2514.6,0.55]
[1730480983231,5.39349,2515.2,2514.8,0.55]
[1730480983430,6.33079074,2515.2,2514.7,0.55]
[1730480983642,10.30673074,2515.2,2514.7,0.55]
[1730480983807,6.33079074,2515.2,2514.7,4.52654]
[1730480984011,6.33079074,2515.2,2514.7,4.52649]
[1730480984209,3.97601,2515.1,2514.7,0.55]
[1730480984420,0.07923717,2515.1,2514.7,0.55]
[1730480984618,0.07923717,2515.1,2514.6,0.55]
[1730480984802,5.39354,2515.2,2514.8,0.55]
[1730480985018,5.39354,2515.2,2514.7,3.97659]
[1730480985019,4.05530717,2515.1,2514.6,0.55]
[1730480985202,3.97618,2515.0,2514.6,0.55]
[1730480985648,4.05567717,2514.9,2514.6,0.55]
[1730480985850,3.97649,2514.8,2514.4,0.55]
[1730480986052,3.97604,2515.1,2514.4,4.60658283]
[1730480986259,4.05506717,2515.2,2514.7,4.5265]
[1730480986409,4.05506717,2515.2,2514.7,6.0288]
[1730480986618,0.0038874,2515.3,2514.9,0.55]
[1730480986840,0.0038874,2515.3,2514.9,4.52626]
[1730480987022,3.9796774,2515.3,2514.9,0.55]
[1730480987211,3.9796774,2515.3,2514.8,4.52642]
[1730480987607,3.9796774,2515.3,2514.8,4.52644]
[1730480987853,0.0038874,2515.3,2515.1,0.55]
[1730480988155,3.9795674,2515.3,2515.1,0.55]
[1730480988358,0.0038874,2515.3,2515.0,0.55]
[1730480988748,0.0038874,2515.3,2514.7,5.4788]
[1730480988749,4.46466903,2515.3,2514.8,0.55]
[1730480988913,3.97601,2515.1,2514.8,0.55]
[1730480989116,3.97583,2515.2,2514.8,0.55]
[1730480989333,0.07923717,2515.2,2514.6,0.55]
[1730480989557,3.97598,2515.1,2514.6,0.55]
[1730480989723,3.97624,2515.0,2514.5,0.55]
[1730480990136,3.97624,2515.0,2514.6,0.07952654]
[1730480990338,3.97624,2515.0,2514.7,0.55]
[1730480990563,3.97624,2515.0,2514.6,0.07952654]
[1730480990564,3.97624,2515.0,2514.6,0.55]
[1730480990715,7.9519,2515.2,2514.6,0.62952654]
[1730480990914,0.83616519,2515.2,2514.6,0.62952654]
[1730480991115,3.97624,2515.0,2514.6,0.62952654]
[1730480991957,3.97592,2515.2,2514.6,0.62952654]
[1730480992265,0.0038874,2515.3,2514.5,9.25088225]
[1730480992266,3.9795574,2515.3,2514.8,4.52638]
[1730480992416,4.05879457,2515.3,2514.8,4.52638]
[1730480992615,4.05879457,2515.3,2514.8,0.55]
[1730480992821,0.0038874,2515.3,2515.2,3.97582]
[1730480993055,0.0038874,2515.3,2515.2,4.52582]
[1730480993722,0.0038874,2515.3,2515.1,3.97586]
[1730480993723,0.0038874,2515.3,2515.1,0.55]
[1730480994525,3.97628,2515.0,2514.6,1.456]
[1730480995063,7.95255,2515.0,2514.6,1.456]
[1730480995271,4.771525,2515.0,2514.6,1.456]
[1730480995425,3.97627,2515.0,2514.6,1.456]
[1730480995815,3.97627,2515.0,2514.6,1.53552625]
[1730480996023,3.97627,2515.0,2514.7,0.55]
[1730480997341,3.97592,2515.2,2514.7,4.52651]
[1730480997342,3.9759,2515.2,2514.7,4.52651]
[1730480997517,0.0031184,2515.3,2514.2,5.37283]
[1730480997518,3.97659,2514.8,2514.2,5.37283]
[1730480997723,4.374179,2514.8,2514.3,4.52716]
[1730480998039,7.7066304,2514.9,2514.4,3.977]
[1730480998237,7.7066304,2514.9,2514.5,0.55]
[1730480998440,3.97612,2515.1,2514.5,4.60634259]
[1730480998761,3.97608,2515.1,2514.7,0.55]
[1730480998973,3.97614,2515.0,2514.7,0.55]
[1730480999124,3.9763,2514.9,2514.5,0.55]
[1730480999329,3.97648,2514.8,2514.5,0.55]
[1730480999636,3.97648,2514.8,2514.4,0.55]
[1730481000279,3.97711,2514.4,2514.2,1.3955]
[1730481000453,3.97711,2514.4,2513.9,9.25186225]
[1730481000623,3.97697,2514.5,2513.9,9.25186225]
[1730481000823,3.9767,2514.7,2514.2,3.97734]
[1730481001021,3.97631,2514.9,2514.3,4.05676952]
[1730481001248,3.97624,2515.0,2514.5,3.97683]
[1730481001249,3.97616,2515.0,2514.5,3.97683]
[1730481001454,3.97616,2515.0,2514.5,0.07953063]
[1730481001455,3.97638,2514.9,2514.5,0.07953063]
[1730481001680,3.97638,2514.9,2514.5,0.55]
[1730481001681,3.97671,2514.7,2514.5,0.55]
[1730481001880,3.97646,2514.8,2514.2,0.55]
[1730481002032,7.95302,2514.8,2514.4,0.55]
[1730481002227,3.97693,2514.5,2514.4,0.55]
[1730481002427,3.97693,2514.5,2513.8,0.41176834]
[1730481002428,1.4894,2514.4,2513.8,1.81346834]
[1730481002761,1.4894,2514.4,2513.8,1.4017]
[1730481002762,3.97788,2513.9,2513.8,1.4017]
[1730481003370,4.05711717,2513.9,2513.8,1.4017]
[1730481005086,0.07923717,2513.9,2513.8,1.4017]
[1730481005292,4.05711717,2513.9,2513.8,1.4017]
[1730481005659,7.86060089,2513.9,2513.8,1.4017]
[1730481005908,7.78136372,2513.9,2513.8,1.4017]
[1730481008537,3.97946,2512.9,2512.4,3.98012]
[1730481008766,3.97946,2512.9,2512.4,7.96029]
[1730481008905,3.97946,2512.9,2512.0,4.60362218]
[1730481008906,3.97948,2512.9,2512.5,3.97999]
[1730481009224,3.97919,2513.1,2512.5,3.97998]
[1730481009423,3.97919,2513.1,2512.0,4.60363218]
[1730481009424,3.97914,2513.1,2512.0,4.60363218]
[1730481009621,3.97914,2513.1,2512.6,0.55]
[1730481009835,4.05837717,2513.1,2512.6,0.55]
[1730481010027,3.97931,2513.0,2512.6,0.55]
[1730481010438,3.97896,2513.3,2512.6,4.52993]
[1730481010743,3.97927,2513.1,2512.6,4.60951814]
[1730481011049,3.97945,2513.0,2512.6,1.48855695]
[1730481011234,3.97947,2512.9,2512.5,0.55]
[1730481011439,3.97945,2513.0,2512.6,1.4099]
[1730481011645,3.97946,2512.9,2512.8,1.4099]
[1730481011961,3.97945,2513.0,2512.8,1.4099]
[1730481013333,4.05869717,2512.9,2512.8,1.4099]
[1730481013533,7.86251189,2512.9,2512.8,1.4099]
[1730481013738,7.78327472,2512.9,2512.8,1.4099]
[1730481014848,3.97945,2513.0,2512.8,1.4099]
[1730481015083,3.97931,2513.0,2512.8,1.4099]
[1730481015415,0.17923717,2513.1,2512.8,1.4099]
[1730481015874,3.97938,2513.0,2512.8,1.4099]
[1730481016451,0.1,2513.1,2512.8,1.4099]
[1730481016661,0.17923717,2513.1,2512.8,1.4099]
[1730481016823,0.1,2513.1,2512.8,1.4099]
[1730481017032,3.97938,2513.0,2512.8,1.4099]
[1730481017226,4.05861717,2513.0,2512.8,1.4099]
[1730481017427,3.97946,2512.9,2512.8,1.4099]
[1730481017624,3.97931,2513.0,2512.8,1.9599]
[1730481017868,4.05869717,2512.9,2512.8,1.4099]
[1730481018225,4.05869717,2512.9,2512.1,3.0]
[1730481018226,0.07923717,2512.9,2511.9,5.27411225]
[1730481018471,3.98018,2512.5,2512.0,3.98089]
[1730481018635,3.98026,2512.4,2511.9,3.98095]
[1730481018909,4.05966717,2512.3,2511.8,8.37367638]
[1730481019096,3.98043,2512.3,2511.7,3.98136]
[1730481019277,3.98043,2512.3,2511.5,5.37411225]
[1730481019477,3.98043,2512.3,2511.8,3.98111]
[1730481019983,3.98043,2512.3,2511.6,0.53741122]
[1730481019984,3.98058,2512.2,2511.7,4.53136]
[1730481020182,7.96045,2512.5,2511.9,4.53096]
[1730481020405,0.07923717,2512.4,2511.9,4.6105719]
[1730481020609,3.98022,2512.5,2512.0,3.98081]
[1730481020781,3.98022,2512.5,2512.1,0.55]
[1730481020983,3.9782,2513.7,2512.3,0.55]
[1730481021240,2.00456631,2513.9,2512.5,0.55]
[1730481021241,3.97908,2513.2,2512.5,0.55]
[1730481021420,3.97908,2513.2,2512.7,0.55]
[1730481021421,0.07923717,2513.2,2512.7,0.55]
[1730481021585,3.97899,2513.2,2512.9,0.55]
[1730481022011,3.97899,2513.2,2512.8,0.55]
[1730481022326,3.97847,2513.6,2513.0,0.55]
[1730481022567,3.97821,2513.7,2513.0,4.99019696]
[1730481022935,0.07923717,2514.0,2513.0,5.06976969]
[1730481023109,3.97795,2513.9,2513.0,4.99019696]
[1730481023409,0.07923717,2513.8,2513.0,4.99019696]
[1730481023612,3.97709,2514.4,2513.0,4.99019696]
[1730481023613,3.97839,2513.6,2513.0,4.99019696]
[1730481023827,3.97883,2513.3,2513.0,1.01089696]
[1730481023999,3.97852,2513.5,2513.0,0.55]
[1730481024194,3.97867,2513.4,2513.0,4.5293]
[1730481024584,3.97853,2513.5,2513.0,4.5293]
[1730481025224,3.97839,2513.6,2513.0,4.60887397]
[1730481025543,3.97815,2513.8,2513.0,4.5293]
[1730481025904,0.07923717,2514.1,2513.0,4.60886617]
[1730481026227,0.07923717,2514.1,2513.0,8.46769079]
[1730481026432,0.07923717,2514.1,2513.0,8.38812462]
[1730481026626,3.97781,2514.0,2513.0,8.38812462]
[1730481026927,3.97817,2513.8,2513.0,5.38812462]
[1730481027092,0.07923717,2513.7,2513.0,4.5293]
[1730481027291,3.97713,2514.4,2513.0,0.55]
[1730481027488,1.28031976,2514.7,2512.7,7.95937]
[1730481027489,3.979,2513.2,2512.7,7.95937]
[1730481027743,3.97877,2513.4,2512.5,3.98009]
[1730481027910,3.97877,2513.4,2512.9,3.97936]
[1730481028232,3.97877,2513.4,2512.7,3.97967]
[1730481028389,3.97904,2513.2,2512.7,7.95937]
[1730481028588,3.97904,2513.2,2512.8,3.97961]
[1730481028790,3.97869,2513.4,2512.9,4.05904131]
[1730481029009,3.97844,2513.6,2513.0,4.5293]
[1730481029638,3.97852,2513.5,2513.0,4.5293]
[1730481029986,0.07923717,2513.6,2512.8,0.55]
[1730481029987,3.9787,2513.4,2512.8,0.55]
[1730481030196,3.97884,2513.3,2513.0,0.55]
[1730481030393,3.97938,2513.0,2512.5,3.98001]
[1730481030624,3.97938,2513.0,2512.4,3.98014]
[1730481030895,3.97938,2513.0,2511.7,3.98134]
[1730481030896,3.98008,2512.6,2512.1,3.98063]
[1730481031132,3.98008,2512.6,2512.2,3.98057]
[1730481031288,3.98036,2512.4,2511.9,3.98092]
[1730481031494,3.98013,2512.5,2512.0,3.98077]
[1730481032401,0.805848,2513.0,2512.2,3.98048]
[1730481032602,3.97986,2512.7,2512.2,3.98048]
[1730481032805,3.97977,2512.8,2512.2,3.98048]
[1730481032806,3.97977,2512.8,2512.3,4.5304]
[1730481033117,4.785258,2513.0,2512.5,4.53001]
[1730481033118,3.97941,2513.0,2512.5,4.53001]
[1730481033438,0.1,2513.1,2512.7,4.52975]
[1730481033729,0.1,2513.1,2512.5,0.55]
[1730481033730,3.97965,2512.8,2512.5,0.55]
[1730481034032,3.97965,2512.8,2512.0,4.53078]
[1730481034033,3.98009,2512.5,2512.0,4.53078]
[1730481034528,3.98029,2512.4,2512.0,4.53078]
[1730481034725,3.98009,2512.5,2512.0,4.53078]
[1730481034946,0.07923717,2512.6,2512.0,4.53078]
[1730481035236,3.9801,2512.5,2512.2,0.55]
[1730481035402,3.9801,2512.5,2512.0,4.53078]
[1730481035606,7.96032,2512.5,2512.0,4.53078]
[1730481035837,3.97995,2512.6,2512.1,3.9807]
[1730481035991,3.97989,2512.7,2512.2,0.55]
[1730481036196,3.98011,2512.5,2512.2,0.55]
[1730481036533,7.96032,2512.5,2512.0,0.55]
[1730481036727,3.98011,2512.5,2512.0,0.55]
[1730481036929,3.98011,2512.5,2512.0,3.98086]
[1730481037087,7.96029,2512.5,2512.1,0.55]
[1730481037398,3.97994,2512.6,2512.1,4.53062]
[1730481037612,3.97989,2512.7,2512.1,4.53062]
[1730481037613,7.95977,2512.7,2512.3,0.55]
[1730481037802,0.07923717,2512.6,2512.3,0.55]
[1730481038206,4.05924717,2512.6,2512.3,0.55]
[1730481038457,0.07923717,2512.6,2512.3,0.55]